[Event "46th GRE-chT Premier 2018"]
[Site "Rio Achaia"]
[Date "2018.07.12"]
[Round "4"]
[White "Vozinaki, Anthi - Maria"]
[Black "Bichaki, Ourania"]
[Result "1-0"]
[ECO "B17"]
[WhiteElo "1971"]
[BlackElo "1099"]
[Annotator "NA"]
[PlyCount "53"]
[EventDate "2018.07.10"]
[EventType "team-tourn"]
[EventCountry "GRE"]
[SourceTitle "playchess.com"]
[Source "ChessBase"]
[SourceQuality "1"]
[TimeControl "40/5400+30:1800+30"]

1. e4 {[%emt 0:00:00]} c6 {[%emt 0:00:00]} 2. d4 {[%emt 0:00:00]} d5 {[%emt 0:00:00]} 3. Nc3 {[%emt 0:00:00]} dxe4 {[%emt 0:00:16]} 4. Nxe4 {[%emt 0:00:00]} Nd7 {[%emt 0:00:12]} 5. Nf3 {[%emt 0:00:06]} Ngf6 {[%emt 0:00:44]} 6. Nxf6+ {[%emt 0:00:12]} Nxf6 {[%emt 0:00:06]} 7. Bc4 {[%emt 0:00:11]} Bf5 {[%emt 0:01:27]} 8. O-O {[%emt 0:03:00]} e6 {[%emt 0:03:51]} 9. c3 {[%emt 0:00:29]} Bd6 {[%emt 0:10:35]} 10. Bg5 {[%emt 0:10:47]} O-O {[%emt 0:11:04]} 11. Re1 {[%emt 0:04:35]} Be7 {[%emt 0:05:27]} 12. Qe2 {[%emt 0:08:05]} Nd5 {[%emt 0:06:38]} 13. Bxe7 {[%emt 0:03:46]} Qxe7 {[%emt 0:00:55]} 14. Rad1 {[%emt 0:03:11]} Qf6 {[%emt 0:10:03]} 15. Ne5 {[%emt 0:03:58]} Qg5 {[%emt 0:06:58]} 16. Nf3 {[%emt 0:09:32]} Qg6 {[%emt 0:05:40]} 17. Nh4 {[%emt 0:04:19]} Nf4 {[%emt 0:10:51]} 18. Qf3 {[%emt 0:06:37]} Qg5 {[%emt 0:03:52]} 19. Nxf5 {[%emt 0:00:28]} exf5 {[%emt 0:04:15]} 20. Re5 {[%emt 0:04:50]} Rfe8 {[%emt 0:02:42]} 21. Rde1 {[%emt 0:02:05]} Kf8 {[%emt 0:02:12]} 22. R1e3 {[%emt 0:21:31]} f6 {[%emt 0:03:56]} 23. h4 {[%emt 0:03:13]} Qxh4 {[%emt 0:03:28]} 24. Rxf5 {[%emt 0:01:54]} Rxe3 {[%emt 0:02:24]} 25. Qxe3 {[%emt 0:02:50]} Ng6 {[%emt 0:02:30]} 26. Qe6 {[%emt 0:01:06]} Ne7 {[%emt 0:01:07]} 27. Qf7# {[%emt 0:00:10]} 1-0

[Event "46th GRE-chT Premier 2018"]
[Site "Rio Achaia"]
[Date "2018.07.12"]
[Round "4"]
[White "Moshovakis, Aggelos"]
[Black "Apostolakakis, Konstantinos"]
[Result "0-1"]
[ECO "B51"]
[WhiteElo "1964"]
[BlackElo "2028"]
[Annotator "NA"]
[PlyCount "106"]
[EventDate "2018.07.10"]
[EventType "team-tourn"]
[EventCountry "GRE"]
[SourceTitle "playchess.com"]
[Source "ChessBase"]
[SourceQuality "1"]
[TimeControl "40/5400+30:1800+30"]

1. e4 {[%emt 0:00:00]} c5 {[%emt 0:00:00]} 2. Nf3 {[%emt 0:00:00]} d6 {[%emt 0:00:00]} 3. Bb5+ {[%emt 0:00:00]} Nd7 {[%emt 0:00:20]} 4. O-O {[%emt 0:00:00]} a6 {[%emt 0:00:11]} 5. Bd3 {[%emt 0:00:00]} Ngf6 {[%emt 0:00:30]} 6. Re1 {[%emt 0:00:02]} e6 {[%emt 0:00:25]} 7. c3 {[%emt 0:00:12]} Be7 {[%emt 0:00:24]} 8. Bc2 {[%emt 0:00:27]} b5 {[%emt 0:01:16]} 9. d4 {[%emt 0:00:31]} Bb7 {[%emt 0:00:30]} 10. Nbd2 {[%emt 0:01:34]} Qc7 {[%emt 0:01:19]} 11. Nf1 {[%emt 0:01:11]} O-O {[%emt 0:04:08]} 12. Ng3 {[%emt 0:00:20]} Rac8 {[%emt 0:00:35]} 13. Bd3 {[%emt 0:02:00]} Rfe8 {[%emt 0:05:28]} 14. Bd2 {[%emt 0:05:38]} Bf8 {[%emt 0:05:37]} 15. Rc1 {[%emt 0:08:53]} g6 {[%emt 0:03:52]} 16. h4 {[%emt 0:03:22]} Qb8 {[%emt 0:04:58]} 17. h5 {[%emt 0:02:58]} cxd4 {[%emt 0:00:57]} 18. cxd4 {[%emt 0:00:28]} Rxc1 {[%emt 0:03:51]} 19. Bxc1 {[%emt 0:01:19]} e5 {[%emt 0:00:22]} 20. d5 {[%emt 0:02:21]} Nc5 {[%emt 0:09:42]} 21. Bg5 {[%emt 0:14:55]} Be7 {[%emt 0:30:28]} 22. Bc2 {[%emt 0:10:09]} b4 {[%emt 0:06:09]} 23. hxg6 {[%emt 0:01:51]} fxg6 {[%emt 0:01:58]} 24. Qd2 {[%emt 0:00:51]} Bc8 {[%emt 0:02:09]} 25. Nh4 {[%emt 0:06:45]} a5 {[%emt 0:03:26]} 26. Rf1 {[%emt 0:08:34]} Qa7 {[%emt 0:01:02]} 27. Kh1 {[%emt 0:02:32]} Rf8 {[%emt 0:05:35]} 28. Bh6 {[%emt 0:07:13]} Rf7 {[%emt 0:00:20]} 29. Bg5 {[%emt 0:00:35]} Rf8 {[%emt 0:00:08]} 30. f4 {[%emt 0:05:58]} Nh5 {[%emt 0:03:11]} 31. Nhf5 {[%emt 0:02:46]} Bxf5 {[%emt 0:02:49]} 32. Nxh5 {[%emt 0:00:06]} Bxe4 {[%emt 0:01:02]} 33. Bxe7 {[%emt 0:05:00]} Qxe7 34. Bxe4 {[%emt 0:00:05]} Qh4+ {[%emt 0:02:47]} 35. Kg1 {[%emt 0:00:03]} Nxe4 {[%emt 0:00:33]} 36. Qe3 {[%emt 0:00:05]} gxh5 {[%emt 0:01:03]} 37. Qxe4 {[%emt 0:00:10]} Rxf4 {[%emt 0:00:04]} 38. Qc2 {[%emt 0:01:45]} Rxf1+ {[%emt 0:00:34]} 39. Kxf1 {[%emt 0:00:01]} Qf4+ {[%emt 0:00:10]} 40. Ke1 {[%emt 0:00:00]} Qe3+ {[%emt 0:00:00]} 41. Kf1 {[%emt 0:01:05]} Qc5 {[%emt 0:02:44]} 42. Qd2 {[%emt 0:04:13]} Qc4+ {[%emt 0:01:21]} 43. Ke1 {[%emt 0:00:07]} Qe4+ {[%emt 0:02:10]} 44. Kd1 {[%emt 0:01:28]} Qd4 {[%emt 0:01:11]} 45. Qxd4 {[%emt 0:00:07]} exd4 {[%emt 0:00:00]} 46. Kd2 {[%emt 0:00:08]} Kf7 {[%emt 0:00:04]} 47. Kd3 {[%emt 0:00:05]} Kf6 {[%emt 0:00:05]} 48. Kxd4 {[%emt 0:00:07]} Kf5 {[%emt 0:00:23]} 49. Kc4 {[%emt 0:00:56]} Ke4 {[%emt 0:00:52]} 50. Kb5 {[%emt 0:02:36]} Kxd5 {[%emt 0:00:46]} 51. Kxa5 {[%emt 0:00:14]} Kc4 {[%emt 0:01:28]} 52. b3+ {[%emt 0:04:48]} Kc3 {[%emt 0:00:31]} 53. Kb5 {[%emt 0:00:18]} d5 {[%emt 0:00:05]} 0-1

[Event "46th GRE-chT Premier 2018"]
[Site "Rio Achaia"]
[Date "2018.07.12"]
[Round "4"]
[White "Karaboikis, Spiridon"]
[Black "Kalofonos, Panayotis"]
[Result "1/2-1/2"]
[ECO "D00"]
[WhiteElo "1942"]
[BlackElo "1896"]
[Annotator "NA"]
[PlyCount "70"]
[EventDate "2018.07.10"]
[EventType "team-tourn"]
[EventCountry "GRE"]
[SourceTitle "playchess.com"]
[Source "ChessBase"]
[SourceQuality "1"]
[TimeControl "40/5400+30:1800+30"]

1. d4 {[%emt 0:00:00]} d5 {[%emt 0:05:19]} 2. Bf4 {[%emt 0:00:00]} Nf6 {[%emt 0:00:06]} 3. e3 {[%emt 0:00:00]} c5 {[%emt 0:00:26]} 4. c3 {[%emt 0:00:00]} Nc6 {[%emt 0:00:26]} 5. Nd2 {[%emt 0:00:47]} Bf5 {[%emt 0:01:45]} 6. Qb3 {[%emt 0:00:20]} Qc8 {[%emt 0:00:43]} 7. Ngf3 {[%emt 0:00:30]} h6 {[%emt 0:02:18]} 8. h3 {[%emt 0:02:12]} e6 {[%emt 0:00:33]} 9. Be2 {[%emt 0:02:38]} c4 {[%emt 0:02:04]} 10. Qd1 {[%emt 0:01:18]} Be7 {[%emt 0:00:28]} 11. b4 {[%emt 0:04:45]} a6 {[%emt 0:26:41]} 12. O-O {[%emt 0:04:08]} b5 {[%emt 0:01:30]} 13. Ne5 {[%emt 0:07:12]} Nxe5 {[%emt 0:01:38]} 14. Bxe5 {[%emt 0:01:36]} a5 {[%emt 0:01:39]} 15. a3 {[%emt 0:00:33]} O-O {[%emt 0:10:03]} 16. Re1 {[%emt 0:13:54]} Ne4 {[%emt 0:06:05]} 17. Nxe4 {[%emt 0:00:27]} Bxe4 {[%emt 0:00:09]} 18. Bf3 {[%emt 0:00:30]} Bxf3 {[%emt 0:00:40]} 19. Qxf3 {[%emt 0:00:10]} f6 {[%emt 0:05:29]} 20. Bg3 {[%emt 0:01:41]} f5 {[%emt 0:00:07]} 21. Be5 {[%emt 0:03:10]} Qd7 {[%emt 0:06:02]} 22. Qh5 {[%emt 0:02:40]} Kh7 {[%emt 0:01:24]} 23. f4 {[%emt 0:06:21]} Ra7 {[%emt 0:06:50]} 24. Rac1 {[%emt 0:28:57]} axb4 {[%emt 0:00:47]} 25. axb4 {[%emt 0:00:06]} Ra3 {[%emt 0:03:33]} 26. Re2 {[%emt 0:02:01]} g6 {[%emt 0:07:12]} 27. Qf3 {[%emt 0:00:05]} Rfa8 {[%emt 0:02:14]} 28. g4 {[%emt 0:01:37]} Bd6 {[%emt 0:01:15]} 29. gxf5 {[%emt 0:03:58]} gxf5 {[%emt 0:00:08]} 30. Rg2 {[%emt 0:00:12]} Bxe5 {[%emt 0:00:11]} 31. fxe5 {[%emt 0:00:51]} Qf7 {[%emt 0:00:06]} 32. Kh2 {[%emt 0:00:39]} Rg8 {[%emt 0:03:06]} 33. Rxg8 {[%emt 0:04:46]} Qxg8 {[%emt 0:00:15]} 34. Rc2 {[%emt 0:00:08]} Ra1 {[%emt 0:03:31]} 35. Rg2 {[%emt 0:00:05]} Qf7 {[%emt 0:00:06]} 1/2-1/2

[Event "46th GRE-chT Premier 2018"]
[Site "Rio Achaia"]
[Date "2018.07.12"]
[Round "4"]
[White "Konstantelias, Konstantinos"]
[Black "Pappas, Andreas"]
[Result "1-0"]
[ECO "A01"]
[WhiteElo "1942"]
[BlackElo "2019"]
[Annotator "NA"]
[PlyCount "109"]
[EventDate "2018.07.10"]
[EventType "team-tourn"]
[EventCountry "GRE"]
[SourceTitle "playchess.com"]
[Source "ChessBase"]
[SourceQuality "1"]
[TimeControl "40/5400+30:1800+30"]

1. b3 e5 {[%emt 0:01:25]} 2. Bb2 {[%emt 0:00:00]} Nc6 {[%emt 0:00:07]} 3. e3 {[%emt 0:00:00]} d5 {[%emt 0:00:18]} 4. Bb5 {[%emt 0:00:00]} f6 {[%emt 0:00:13]} 5. Qh5+ {[%emt 0:15:04]} g6 {[%emt 0:00:42]} 6. Qh4 {[%emt 0:00:05]} Nh6 {[%emt 0:11:05]} 7. f4 {[%emt 0:06:14]} Nf5 {[%emt 0:01:44]} 8. Qf2 {[%emt 0:00:19]} exf4 {[%emt 0:19:11]} 9. Qxf4 {[%emt 0:01:28]} Bd6 {[%emt 0:01:51]} 10. Qf2 {[%emt 0:01:45]} O-O {[%emt 0:02:38]} 11. Bxc6 {[%emt 0:07:06]} bxc6 {[%emt 0:00:18]} 12. Ne2 {[%emt 0:00:34]} Qe7 {[%emt 0:04:45]} 13. Nbc3 {[%emt 0:20:27]} Bd7 {[%emt 0:04:39]} 14. O-O-O {[%emt 0:02:01]} Ba3 {[%emt 0:03:16]} 15. g4 {[%emt 0:01:21]} Bxb2+ {[%emt 0:01:07]} 16. Kxb2 {[%emt 0:00:03]} Nd6 {[%emt 0:00:09]} 17. Qg2 {[%emt 0:04:37]} a5 {[%emt 0:03:14]} 18. Ka1 {[%emt 0:06:01]} a4 {[%emt 0:01:49]} 19. Nxa4 {[%emt 0:07:01]} f5 {[%emt 0:26:40]} 20. g5 {[%emt 0:03:17]} Ne4 {[%emt 0:00:53]} 21. h4 {[%emt 0:10:23]} Qa3 {[%emt 0:05:07]} 22. Nac3 {[%emt 0:04:17]} f4 {[%emt 0:01:21]} 23. Nc1 {[%emt 0:07:21]} Nxc3 {[%emt 0:01:56]} 24. dxc3 {[%emt 0:00:04]} fxe3 {[%emt 0:00:17]} 25. Rhf1 {[%emt 0:00:24]} Bf5 {[%emt 0:02:41]} 26. h5 {[%emt 0:00:32]} Rae8 {[%emt 0:00:43]} 27. Rde1 {[%emt 0:01:04]} Qe7 {[%emt 0:01:26]} 28. hxg6 {[%emt 0:00:24]} hxg6 {[%emt 0:00:26]} 29. Kb2 {[%emt 0:01:02]} Qe5 {[%emt 0:02:02]} 30. Ne2 {[%emt 0:00:21]} c5 {[%emt 0:00:19]} 31. Rd1 {[%emt 0:01:01]} Be4 {[%emt 0:00:32]} 32. Qg3 {[%emt 0:00:33]} Qxg3 {[%emt 0:02:10]} 33. Nxg3 {[%emt 0:00:02]} Bg2 {[%emt 0:00:12]} 34. Rxf8+ {[%emt 0:00:59]} Rxf8 {[%emt 0:00:04]} 35. Re1 {[%emt 0:00:14]} d4 {[%emt 0:00:29]} 36. b4 {[%emt 0:01:12]} Rf3 {[%emt 0:00:06]} 37. Ne2 {[%emt 0:00:33]} Rf2 {[%emt 0:00:14]} 38. cxd4 {[%emt 0:00:16]} Bf3 {[%emt 0:00:20]} 39. Ng1 {[%emt 0:00:18]} cxd4 {[%emt 0:00:18]} 40. Nxf3 {[%emt 0:00:00]} Rxf3 {[%emt 0:00:00]} 41. Kb3 {[%emt 0:06:56]} e2+ {[%emt 0:18:31]} 42. Kc4 {[%emt 0:01:18]} Rc3+ {[%emt 0:00:13]} 43. Kxd4 {[%emt 0:00:04]} Rxc2 {[%emt 0:00:08]} 44. a4 {[%emt 0:00:03]} Kf7 {[%emt 0:01:19]} 45. a5 {[%emt 0:00:40]} c6 {[%emt 0:07:15]} 46. a6 {[%emt 0:09:03]} Ra2 {[%emt 0:00:53]} 47. Kc5 {[%emt 0:00:05]} Rxa6 {[%emt 0:00:41]} 48. Rxe2 {[%emt 0:00:04]} Ra4 {[%emt 0:01:48]} 49. Rf2+ {[%emt 0:00:13]} Kg7 {[%emt 0:00:11]} 50. Rd2 {[%emt 0:00:55]} Ra1 {[%emt 0:02:21]} 51. Kxc6 {[%emt 0:00:28]} Rc1+ {[%emt 0:00:15]} 52. Kb6 {[%emt 0:00:42]} Rg1 {[%emt 0:00:37]} 53. Rd5 {[%emt 0:00:04]} Rf1 {[%emt 0:00:09]} 54. b5 {[%emt 0:01:03]} Rf5 {[%emt 0:00:16]} 55. Kc6 {[%emt 0:00:09]} 1-0

[Event "46th GRE-chT Premier 2018"]
[Site "Rio Achaia"]
[Date "2018.07.12"]
[Round "4"]
[White "Loupos, Vasilios"]
[Black "Boviatsis, Charalampos"]
[Result "1-0"]
[ECO "A80"]
[WhiteElo "1927"]
[BlackElo "1979"]
[Annotator "NA"]
[PlyCount "119"]
[EventDate "2018.07.10"]
[EventType "team-tourn"]
[EventCountry "GRE"]
[SourceTitle "playchess.com"]
[Source "ChessBase"]
[SourceQuality "1"]
[TimeControl "40/5400+30:1800+30"]

1. d4 {[%emt 0:01:11]} f5 {[%emt 0:00:29]} 2. Bg5 {[%emt 0:00:32]} Nf6 {[%emt 0:02:21]} 3. Bxf6 {[%emt 0:00:24]} exf6 {[%emt 0:01:04]} 4. g3 {[%emt 0:01:07]} d5 {[%emt 0:03:32]} 5. Bg2 {[%emt 0:01:33]} c6 {[%emt 0:01:12]} 6. c3 {[%emt 0:01:38]} Bd6 {[%emt 0:04:44]} 7. Nh3 {[%emt 0:02:49]} Na6 {[%emt 0:10:23]} 8. e3 {[%emt 0:01:40]} Be6 {[%emt 0:08:44]} 9. Nf4 {[%emt 0:01:58]} Bf7 {[%emt 0:02:09]} 10. Nd2 {[%emt 0:05:42]} O-O {[%emt 0:07:54]} 11. O-O {[%emt 0:02:27]} Re8 {[%emt 0:08:06]} 12. a4 {[%emt 0:05:19]} Nc7 {[%emt 0:05:25]} 13. a5 {[%emt 0:06:49]} a6 {[%emt 0:05:07]} 14. Nd3 {[%emt 0:05:49]} Re7 {[%emt 0:09:27]} 15. Nb3 {[%emt 0:02:41]} g5 {[%emt 0:01:59]} 16. Nbc5 {[%emt 0:01:23]} Rb8 {[%emt 0:01:25]} 17. Bf3 {[%emt 0:03:22]} Qe8 {[%emt 0:01:42]} 18. Kh1 {[%emt 0:07:30]} Kh8 {[%emt 0:02:36]} 19. Re1 {[%emt 0:05:09]} Qf8 {[%emt 0:03:41]} 20. Rg1 {[%emt 0:05:43]} Nb5 {[%emt 0:01:07]} 21. Qf1 {[%emt 0:07:48]} h5 {[%emt 0:01:52]} 22. h4 {[%emt 0:03:44]} Qh6 {[%emt 0:03:32]} 23. Rg2 {[%emt 0:02:00]} Rg8 {[%emt 0:01:15]} 24. Rh2 {[%emt 0:00:50]} Be8 {[%emt 0:06:25]} 25. Rc1 {[%emt 0:03:23]} Bb8 {[%emt 0:00:41]} 26. hxg5 {[%emt 0:02:54]} fxg5 {[%emt 0:00:19]} 27. Ne5 {[%emt 0:00:25]} Nd6 {[%emt 0:00:50]} 28. Kg2 {[%emt 0:04:59]} Ne4 {[%emt 0:02:01]} 29. Nxe4 {[%emt 0:03:00]} dxe4 {[%emt 0:01:09]} 30. Bxh5 {[%emt 0:01:13]} Rh7 {[%emt 0:02:24]} 31. Qh1 {[%emt 0:03:30]} Bxe5 {[%emt 0:00:15]} 32. Bxe8 {[%emt 0:01:20]} Qxh2+ {[%emt 0:00:14]} 33. Qxh2 {[%emt 0:00:08]} Rxh2+ {[%emt 0:00:13]} 34. Kxh2 {[%emt 0:00:06]} Rxe8 {[%emt 0:00:15]} 35. dxe5 {[%emt 0:00:09]} Rxe5 {[%emt 0:00:09]} 36. Rd1 {[%emt 0:02:08]} Rxa5 {[%emt 0:02:01]} 37. Rd7 {[%emt 0:00:20]} Rb5 {[%emt 0:00:07]} 38. b4 {[%emt 0:00:41]} c5 {[%emt 0:00:56]} 39. bxc5 {[%emt 0:00:35]} Rxc5 {[%emt 0:00:28]} 40. Rxb7 {[%emt 0:00:00]} Rxc3 {[%emt 0:00:00]} 41. Rb6 {[%emt 0:05:10]} Ra3 {[%emt 0:00:48]} 42. Re6 {[%emt 0:09:08]} g4 {[%emt 0:01:07]} 43. Re5 {[%emt 0:02:39]} Ra2 {[%emt 0:10:35]} 44. Kg2 {[%emt 0:01:04]} a5 {[%emt 0:02:44]} 45. Rxf5 {[%emt 0:00:32]} Kh7 {[%emt 0:03:07]} 46. Rg5 {[%emt 0:01:42]} Ra4 {[%emt 0:02:00]} 47. Rxg4 {[%emt 0:00:20]} Rb4 {[%emt 0:00:37]} 48. Rg5 {[%emt 0:02:17]} a4 {[%emt 0:00:53]} 49. g4 {[%emt 0:02:09]} Kh6 {[%emt 0:01:10]} 50. Ra5 {[%emt 0:00:21]} Kg6 {[%emt 0:01:03]} 51. Ra6+ {[%emt 0:00:51]} Kg5 {[%emt 0:01:39]} 52. Kg3 {[%emt 0:00:33]} Rc4 {[%emt 0:00:23]} 53. Ra5+ {[%emt 0:00:31]} Kg6 {[%emt 0:00:46]} 54. Kf4 {[%emt 0:01:14]} Rb4 {[%emt 0:00:18]} 55. Ra6+ {[%emt 0:00:25]} Kg7 {[%emt 0:00:11]} 56. g5 {[%emt 0:01:33]} Kf7 {[%emt 0:01:14]} 57. Ke5 {[%emt 0:00:45]} Kg7 {[%emt 0:00:27]} 58. Kf5 {[%emt 0:01:26]} Rc4 {[%emt 0:00:14]} 59. Ra7+ {[%emt 0:00:15]} Kg8 {[%emt 0:00:10]} 60. Kg6 {[%emt 0:01:17]} 1-0

[Event "46th GRE-chT Premier 2018"]
[Site "Rio Achaia"]
[Date "2018.07.12"]
[Round "4"]
[White "Betsakos, Konstantinos"]
[Black "Loutragotis, Paraskevas Pantelei"]
[Result "0-1"]
[ECO "A48"]
[WhiteElo "1913"]
[BlackElo "1980"]
[Annotator "NA"]
[PlyCount "82"]
[EventDate "2018.07.10"]
[EventType "team-tourn"]
[EventCountry "GRE"]
[SourceTitle "playchess.com"]
[Source "ChessBase"]
[SourceQuality "1"]
[TimeControl "40/5400+30:1800+30"]

1. d4 {[%emt 0:00:00]} Nf6 {[%emt 0:00:00]} 2. Nf3 {[%emt 0:00:00]} g6 {[%emt 0:00:22]} 3. Bg5 {[%emt 0:00:00]} Bg7 {[%emt 0:00:30]} 4. Nbd2 {[%emt 0:00:00]} d6 {[%emt 0:01:08]} 5. c3 {[%emt 0:00:05]} O-O {[%emt 0:02:49]} 6. e4 {[%emt 0:00:04]} Nbd7 {[%emt 0:01:16]} 7. Bc4 {[%emt 0:01:15]} c6 {[%emt 0:06:57]} 8. O-O {[%emt 0:01:20]} Nxe4 {[%emt 0:04:11]} 9. Bxf7+ {[%emt 0:02:03]} Rxf7 {[%emt 0:00:06]} 10. Nxe4 {[%emt 0:00:03]} Nf6 {[%emt 0:02:39]} 11. Bxf6 {[%emt 0:02:34]} exf6 {[%emt 0:00:14]} 12. d5 {[%emt 0:02:34]} c5 {[%emt 0:00:19]} 13. a4 {[%emt 0:02:16]} h6 {[%emt 0:04:57]} 14. Nfd2 {[%emt 0:06:38]} f5 {[%emt 0:03:37]} 15. Ng3 {[%emt 0:00:04]} b6 {[%emt 0:01:46]} 16. f4 {[%emt 0:11:58]} a6 {[%emt 0:04:03]} 17. Nc4 {[%emt 0:06:27]} Rb8 {[%emt 0:02:04]} 18. a5 {[%emt 0:05:55]} b5 {[%emt 0:00:07]} 19. Nb6 {[%emt 0:00:02]} Rxb6 {[%emt 0:00:24]} 20. axb6 {[%emt 0:00:05]} Qxb6 {[%emt 0:00:06]} 21. Qe2 {[%emt 0:08:14]} Bd7 {[%emt 0:03:15]} 22. Rf3 {[%emt 0:04:51]} a5 {[%emt 0:01:07]} 23. Re3 {[%emt 0:00:40]} Bf6 {[%emt 0:00:51]} 24. Nf1 {[%emt 0:01:41]} a4 {[%emt 0:16:42]} 25. Nd2 {[%emt 0:08:57]} Qb7 {[%emt 0:06:17]} 26. Rd1 {[%emt 0:14:56]} b4 {[%emt 0:11:37]} 27. Qd3 {[%emt 0:17:21]} Bb5 {[%emt 0:01:39]} 28. Qb1 {[%emt 0:00:52]} a3 {[%emt 0:03:26]} 29. Nf3 {[%emt 0:03:02]} axb2 {[%emt 0:08:52]} 30. Qxb2 {[%emt 0:00:27]} Bc4 {[%emt 0:05:38]} 31. h4 {[%emt 0:00:34]} bxc3 {[%emt 0:00:15]} 32. Qf2 {[%emt 0:00:29]} Bxd5 {[%emt 0:01:01]} 33. Ne5 {[%emt 0:00:20]} dxe5 {[%emt 0:05:08]} 34. fxe5 {[%emt 0:00:04]} Bg7 {[%emt 0:02:41]} 35. Rxc3 {[%emt 0:00:59]} c4 {[%emt 0:00:42]} 36. Re1 {[%emt 0:00:38]} Re7 {[%emt 0:00:32]} 37. Qf4 {[%emt 0:00:28]} Qb6+ {[%emt 0:00:21]} 38. Kh1 {[%emt 0:00:23]} Qe6 {[%emt 0:00:29]} 39. Rce3 {[%emt 0:00:38]} Be4 {[%emt 0:00:08]} 40. Rxe4 {[%emt 0:00:00]} fxe4 {[%emt 0:00:00]} 41. Qxe4 {[%emt 0:01:23]} c3 {[%emt 0:00:57]} 0-1

[Event "46th GRE-chT Premier 2018"]
[Site "Rio Achaia"]
[Date "2018.07.12"]
[Round "4"]
[White "Gavriil, Odysseas-Panagiotis"]
[Black "Brokalakis - Gounaris, Christos"]
[Result "1/2-1/2"]
[ECO "A05"]
[WhiteElo "1910"]
[BlackElo "1901"]
[Annotator "NA"]
[PlyCount "87"]
[EventDate "2018.07.10"]
[EventType "team-tourn"]
[EventCountry "GRE"]
[SourceTitle "playchess.com"]
[Source "ChessBase"]
[SourceQuality "1"]
[TimeControl "40/5400+30:1800+30"]

1. Nf3 {[%emt 0:00:00]} Nf6 {[%emt 0:02:27]} 2. g3 {[%emt 0:00:00]} d5 {[%emt 0:00:47]} 3. Bg2 {[%emt 0:00:00]} Bg4 {[%emt 0:01:04]} 4. h3 {[%emt 0:03:35]} Bh5 {[%emt 0:03:21]} 5. d3 {[%emt 0:04:51]} e6 {[%emt 0:02:00]} 6. g4 {[%emt 0:00:57]} Bg6 {[%emt 0:00:07]} 7. Ne5 {[%emt 0:00:06]} Bd6 {[%emt 0:01:02]} 8. Nxg6 {[%emt 0:00:09]} hxg6 {[%emt 0:00:06]} 9. e3 {[%emt 0:04:19]} c6 {[%emt 0:02:48]} 10. Nd2 {[%emt 0:01:29]} Nbd7 {[%emt 0:01:07]} 11. b3 {[%emt 0:11:56]} Qe7 {[%emt 0:04:11]} 12. Bb2 {[%emt 0:01:45]} a5 {[%emt 0:06:23]} 13. a4 {[%emt 0:02:25]} e5 {[%emt 0:01:10]} 14. Qc1 {[%emt 0:11:16]} O-O {[%emt 0:08:19]} 15. Ba3 {[%emt 0:02:42]} Bb4 {[%emt 0:06:20]} 16. O-O {[%emt 0:04:22]} Rfe8 {[%emt 0:04:46]} 17. Bxb4 {[%emt 0:13:09]} axb4 {[%emt 0:03:16]} 18. d4 {[%emt 0:02:38]} e4 {[%emt 0:01:47]} 19. c3 {[%emt 0:06:25]} Nh7 {[%emt 0:05:37]} 20. cxb4 {[%emt 0:02:46]} Qxb4 {[%emt 0:00:33]} 21. Rd1 {[%emt 0:01:56]} Qe7 {[%emt 0:01:16]} 22. Qa3 {[%emt 0:00:41]} Qe6 {[%emt 0:01:40]} 23. Qb4 {[%emt 0:07:48]} Rab8 {[%emt 0:01:38]} 24. Nf1 {[%emt 0:02:55]} f5 {[%emt 0:02:19]} 25. Nh2 {[%emt 0:01:58]} Rf8 {[%emt 0:01:49]} 26. Qd2 {[%emt 0:00:23]} Qe7 {[%emt 0:16:30]} 27. Rf1 {[%emt 0:04:17]} Rbe8 {[%emt 0:04:47]} 28. Rae1 {[%emt 0:00:27]} fxg4 {[%emt 0:02:27]} 29. hxg4 {[%emt 0:01:36]} Ng5 {[%emt 0:04:03]} 30. Qd1 {[%emt 0:00:58]} Rf7 {[%emt 0:01:31]} 31. f4 {[%emt 0:03:04]} exf3 {[%emt 0:00:06]} 32. Nxf3 {[%emt 0:00:17]} Ne4 {[%emt 0:00:28]} 33. Ne5 {[%emt 0:00:26]} Nxe5 {[%emt 0:01:36]} 34. Bxe4 {[%emt 0:00:30]} dxe4 {[%emt 0:01:57]} 35. dxe5 {[%emt 0:00:08]} Rxf1+ {[%emt 0:01:05]} 36. Rxf1 {[%emt 0:00:29]} Qxe5 {[%emt 0:00:52]} 37. Kg2 {[%emt 0:02:07]} Qe6 {[%emt 0:03:16]} 38. Rf4 {[%emt 0:01:52]} Rf8 {[%emt 0:03:52]} 39. Rxf8+ {[%emt 0:00:54]} Kxf8 {[%emt 0:00:01]} 40. Qd8+ {[%emt 0:00:00]} Kf7 {[%emt 0:00:00]} 41. Qc7+ {[%emt 0:04:28]} Kg8 {[%emt 0:11:48]} 42. Qb8+ {[%emt 0:01:34]} Kh7 {[%emt 0:01:10]} 43. Qh2+ {[%emt 0:00:07]} Kg8 {[%emt 0:00:05]} 44. Qb8+ {[%emt 0:00:03]} 1/2-1/2